fUST/lending_fUST_20240806
["ID","MTS","AMOUNT","RATE_DAILY","PERIOD"]
[334292780,1722913748120,-385.76908016,0.00017019,2]
[334292781,1722913748143,-154.72922386,0.00017148,2]
[334292782,1722913748165,-250.96676408,0.00019076,2]
[334292783,1722913752101,-263.3429174,0.00019076,2]
[334292784,1722913759132,-1890.88194782,0.00019076,2]
[334292785,1722913759156,-1391.46395721,0.00019477,2]
[334292786,1722913759185,-1097.7289244,0.00019477,2]
[334292787,1722913759208,-178.77035965,0.00019547,2]
[334292788,1722913759232,-1280.83587776,0.00019547,2]
[334292789,1722913759255,-951.80625463,0.00019547,2]
[334292790,1722913759277,-1844.06463863,0.0001997,2]
[334292791,1722913759300,-300.0,0.00019998,2]
[334292792,1722913759322,-342.5916802,0.00019999,2]
[334292793,1722913759347,-665.64018879,0.00019999,2]
[334292794,1722913759370,-409.62109721,0.00019999,2]
[334292795,1722913759396,-6529.14932201,0.00020021,2]
[334292796,1722913764121,-583.20120522,0.00020021,2]
[334292797,1722913769899,169.805287,0.00014247,2]
[334292798,1722913819137,155.02218063,0.00017269,2]
[334292834,1722913832828,-728.61442235,0.00019547,2]
[334292836,1722913832838,-543.18145857,0.00019547,2]
[334292838,1722913832849,-300.0,0.00019998,2]
[334292840,1722913832858,-13644.45045237,0.00019999,2]
[334292842,1722913832867,-154.54409492,0.00019999,2]
[334292844,1722913832877,-534.02405776,0.00019999,2]
[334292845,1722913832886,-231.7817875,0.00019999,2]
[334292847,1722913832896,-413.40372653,0.00019999,2]
[334292850,1722913832907,-120.62033123,0.00019999,2]
[334292852,1722913832917,-154.93000355,0.00019999,2]
[334292854,1722913832926,-762.3939553,0.00020021,2]
[334292860,1722913833017,-2710.58884049,0.00020021,2]
[334292861,1722913833028,-868.49,0.00020021,2]
[334292862,1722913833040,-2610.54855304,0.00020021,2]
[334292897,1722913838540,-154.54409492,0.00019547,2]
[334292898,1722913838550,-2084.63342048,0.00020021,2]
[334292899,1722913838559,-215.387523,0.0002007,2]
[334292900,1722913838569,-215.387523,0.00020123,2]
[334292901,1722913838578,-215.387523,0.00020177,2]
[334292902,1722913838588,-215.387523,0.0002023,2]
[334292903,1722913838599,-788.4723926,0.00020235,2]
[334292904,1722913840263,-1190.6080579,0.00020235,2]
[334292905,1722913840272,-176.24730842,0.0002028,2]
[334292906,1722913840281,-513.61347926,0.0002028,2]
[334292907,1722913840290,-209.82742749,0.0002028,2]
[334292908,1722913840300,-215.387523,0.00020283,2]
[334292909,1722913840309,-215.387523,0.00020337,2]
[334292910,1722913840319,-215.387523,0.0002039,2]
[334292911,1722913840328,-215.387523,0.00020443,2]
[334292912,1722913840337,-413.99267103,0.00020721,2]
[334292913,1722913840348,-413.99267103,0.00020721,2]
[334292914,1722913840358,-154.83742071,0.00020721,2]
[334292915,1722913840367,-733.16618169,0.00020721,2]
[334292916,1722913840377,-284.12947458,0.00020721,2]
[334292917,1722913840389,-202.74527508,0.00020785,2]
[334292918,1722913840398,-178.34527745,0.00020999,2]
[334292919,1722913840408,-154.83742071,0.00020999,2]
[334292920,1722913840418,-166.26970603,0.00021,2]
[334292921,1722913840429,-292.30309135,0.00021488,2]
[334292922,1722913840438,-333.27365384,0.00021532,2]
[334292923,1722913840447,-810.1149959,0.00021532,2]
[334292924,1722913840458,-1391.37238775,0.00021542,2]
[334292925,1722913840468,-736.88498011,0.00021588,10]
[334292926,1722913840477,-357.2656714,0.00021589,2]
[334292927,1722913840486,-288.43467697,0.00021589,2]
[334292928,1722913840496,-6365.4353209,0.00021599,2]
[334292929,1722913840505,-188.63052762,0.00021599,2]
[334292930,1722913840514,-156.29506882,0.00021609,2]
[334292931,1722913840523,-594.67735156,0.00021632,2]
[334292932,1722913840532,-420.0,0.00021998,2]
[334292933,1722913840541,-302.15405627,0.00022,2]
[334292934,1722913840550,-302.12393124,0.00022,2]
[334292935,1722913840559,-302.15405627,0.0002222,2]
[334292936,1722913840568,-308.94547163,0.0002222,2]
[334292937,1722913840577,-401.36178837,0.0002244,2]
[334292938,1722913840586,-1844.06463857,0.00023889,2]
[334292939,1722913840596,-4390.83493264,0.00024,30]
[334292940,1722913840606,-657.34815712,0.00024028,2]
[334292941,1722913840615,-200.0,0.00024658,15]
[334292942,1722913840624,-380.0,0.00024658,2]
[334292943,1722913840634,-9588.92139159,0.00025,30]
[334292944,1722913840643,-500.0,0.00025,30]
[334292945,1722913840653,-195.0,0.00025,30]
[334292946,1722913840662,-621.86740786,0.00025229,2]
[334292947,1722913840672,-620.09337039,0.00026491,2]
[334292948,1722913840681,-881.61577024,0.00026599,2]
[334292949,1722913840690,-155.96,0.000266,31]
[334292950,1722913840699,-155.96,0.000266,31]
[334292953,1722913840840,-402.3465429,0.00026759,2]
[334292954,1722913840852,-160.54991199,0.00026769,2]
[334292955,1722913840862,-621.85368759,0.00027492,2]
[334292956,1722913840871,-1844.06463857,0.00027807,2]
[334292957,1722913840881,-620.00466852,0.00027815,2]
[334292958,1722913840890,-162.004223,0.00027884,2]
[334292959,1722913840900,-611.6185,0.00028005,30]
[334292960,1722913840909,-999.13744623,0.00028165,2]
[334292961,1722913840919,-620.00023343,0.00029206,2]
[334292962,1722913840928,-292.30309133,0.00029948,2]
[334292963,1722913840937,-155.96,0.000305,31]
[334292964,1722913840946,-155.96,0.000305,31]
[334292965,1722913840956,-209.024523,0.00031507,120]
[334292966,1722913840964,-894.54610017,0.00031645,30]
[334292967,1722913840973,-1844.06463857,0.00031726,2]
[334292968,1722913840982,-155.96,0.000344,31]
[334292969,1722913840991,-155.96,0.000344,31]
[334292970,1722913841001,-169.805287,0.00034703,2]
[334292971,1722913841010,-1844.06463857,0.00035644,2]
[334292972,1722913841018,-207.0547247,0.00037534,2]
[334292973,1722913841027,-1411.0,0.0003757,2]
[334292974,1722913841036,-1229.00520648,0.000379,2]
[334292975,1722913841045,-200.0,0.00037973,2]
[334292976,1722913841055,-191.98,0.00037979,3]
[334292977,1722913841064,-500.0,0.00037979,15]
[334292978,1722913841073,-397.44236844,0.00037979,15]
[334292979,1722913841082,-178.00633592,0.00037979,15]
[334292980,1722913841091,-500.0,0.00037979,15]
[334292981,1722913841103,-500.0,0.00037979,15]
[334292982,1722913841115,-500.0,0.00037979,15]
[334292983,1722913841124,-500.0,0.00037979,15]
[334292984,1722913841134,-500.0,0.00037979,15]
[334292985,1722913841143,-500.0,0.00037979,15]
[334292986,1722913841152,-575.95,0.0003798,3]
[334292987,1722913841161,-4389.56,0.0003798,3]
[334292988,1722913841170,-23186.7608394,0.0003799,4]
[334292989,1722913841180,-9120.59849346,0.00038,2]
[334292990,1722913841189,-3000.0,0.00038,42]
[334292991,1722913841198,-150.112233,0.00038,8]
[334292992,1722913841207,-515.28627736,0.00038,60]
[334292993,1722913841217,-284.89127157,0.00038072,3]
[334292994,1722913841226,-1073.77489417,0.00038072,2]
[334292995,1722913841235,-10000.0,0.00038072,30]
[334292996,1722913841245,-4181.02325297,0.00038072,4]
[334292997,1722913841254,-6895.35234222,0.00038072,7]
[334292998,1722913841263,-166.97081196,0.00038072,4]
[334292999,1722913841274,-1625.81763535,0.00038072,4]
[334293000,1722913841283,-3000.0,0.00038101,42]
[334293001,1722913841292,-3000.0,0.00038203,42]
[334293002,1722913841302,-1229.00520647,0.00038225,2]
[334293003,1722913841311,-155.96,0.000383,31]
[334293004,1722913841320,-155.96,0.000383,31]
[334293005,1722913841329,-3000.0,0.00038304,42]
[334293006,1722913841338,-500.0,0.00038356,20]
[334293007,1722913841349,-3000.0,0.00038406,42]
[334293008,1722913841359,-292.30309133,0.00038407,2]
[334293009,1722913841368,-500.0,0.00038493,22]
[334293010,1722913841378,-23186.7608394,0.00038497,4]
[334293011,1722913841390,-3000.0,0.00038507,42]
[334293012,1722913841399,-1229.00520647,0.0003855,2]
[334293013,1722913841408,-3000.0,0.00038609,42]
[334293014,1722913841418,-500.0,0.0003863,24]
[334293015,1722913841429,-500.0,0.000387,60]
[334293016,1722913841439,-500.0,0.000387,61]
[334293017,1722913841448,-194.87723215,0.000387,62]
[334293018,1722913841458,-3000.0,0.0003871,42]
[334293019,1722913841468,-500.0,0.00038767,26]
[334293020,1722913841478,-3000.0,0.00038812,42]
[334293021,1722913841487,-153.0,0.00038849,2]
[334293022,1722913841496,-1229.00520647,0.00038875,2]
[334293023,1722913841505,-500.0,0.00038904,28]
[334293024,1722913841515,-3000.0,0.00038913,42]
[334293025,1722913841524,-3000.0,0.00039014,42]
[334293026,1722913841533,-500.0,0.00039041,30]
[334293027,1722913841542,-3000.0,0.00039116,42]
[334293028,1722913841551,-500.0,0.00039178,32]
[334293029,1722913841561,-46373.5216787,0.0003918,5]
[334293030,1722913841570,-282.155725,0.0003919,14]
[334293031,1722913841579,-151.0,0.0003919,14]
[334293032,1722913841589,-1550.686871,0.0003919,2]
[334293033,1722913841598,-1550.686871,0.0003919,2]
[334293034,1722913841608,-355.235718,0.0003919,14]
[334293035,1722913841617,-355.235718,0.0003919,14]
[334293036,1722913841626,-224.398743,0.0003919,14]
[334293037,1722913841635,-224.398743,0.0003919,14]
[334293038,1722913841644,-151.0,0.0003919,14]
[334293039,1722913841653,-2503.474404,0.0003919,14]
[334293040,1722913841662,-271.87304,0.0003919,14]
[334293041,1722913841671,-151.911687,0.0003919,14]
[334293042,1722913841681,-2503.474404,0.0003919,14]
[334293043,1722913841690,-151.0,0.0003919,14]
[334293044,1722913841699,-151.0,0.0003919,14]
[334293045,1722913841708,-151.0,0.0003919,14]
[334293046,1722913841718,-294.868813,0.0003919,14]
[334293047,1722913841728,-294.868813,0.0003919,14]
[334293048,1722913841737,-724.067027,0.0003919,14]
[334293049,1722913841747,-724.067027,0.0003919,14]
[334293050,1722913841756,-151.0,0.0003919,14]
[334293051,1722913841765,-151.0,0.0003919,14]
[334293052,1722913841775,-300.368163,0.0003919,14]
[334293053,1722913841785,-300.368163,0.0003919,14]
[334293054,1722913841794,-151.0,0.0003919,14]
[334293055,1722913841803,-509.041514,0.0003919,14]
[334293056,1722913841812,-509.041514,0.0003919,14]
[334293057,1722913841821,-2000.0,0.0003919,2]
[334293058,1722913841830,-88888.0,0.0003919,5]
[334293059,1722913841840,-1229.00520647,0.000392,2]
[334293060,1722913841852,-460.12826561,0.000392,2]
[334293061,1722913841862,-3000.0,0.00039217,42]
[334293062,1722913841873,-13630.77160249,0.0003929,5]
[334293063,1722913841886,-310.410008,0.0003929,5]
[334293065,1722913843303,-543.18145857,0.00019547,2]
[334293066,1722913843312,-155.18362988,0.00019999,2]
[334293067,1722913843323,-333.27365384,0.0002142,2]
[334293068,1722913843332,-151.0,0.0003919,14]
[334293069,1722913843341,-9245.57922891,0.0003929,5]
[334293070,1722913843358,-192.350365,0.0003929,14]
[334293071,1722913843367,-192.350365,0.0003929,14]
[334293072,1722913843377,-151.0,0.0003929,14]
[334293073,1722913843391,-1550.686871,0.0003929,2]
[334293074,1722913843400,-1145.31394236,0.0003929,2]
[334293124,1722914746143,-162.871008,0.00014247,2]
[334293125,1722914746165,-388.04437588,0.00018989,2]
[334293126,1722914751103,-291.72446728,0.00018989,2]
[334293127,1722914751125,-91.06321104,0.00018989,2]
[334293128,1722914825095,-152.18192413,0.00014247,2]
[334293129,1722914832113,-14.36751887,0.00014247,2]
[334293130,1722914832134,-216.86542066,0.00018979,2]
[334293131,1722914841101,-555.91293275,0.00018979,2]
[334293132,1722914852143,-37.33664249,0.00018979,2]
[334293133,1722914852166,-549.43994442,0.00018989,2]
[334293134,1722914852188,-10.38088127,0.00019477,2]
[334293136,1722914949103,-245.0,0.0001895,2]
[334293137,1722914956124,-565.1149959,0.0001895,2]
[334293138,1722914956147,-236.1786625,0.0002,2]
[334293139,1722914956169,-630.0,0.0002028,2]
[334293140,1722914956192,-305.4860693,0.0002028,2]
[334293141,1722914956213,-326.29296298,0.00020721,2]
[334293142,1722914956236,-676.7785006,0.00021609,2]
[334293143,1722914956259,-273.18649696,0.00021916,2]
[334293144,1722914956281,-302.36509981,0.00022,2]
[334293145,1722914956303,-881.61577024,0.0002217,2]
[334293146,1722914956327,-174.457016,0.00022869,2]
[334293147,1722914956348,-1830.95975391,0.00023,2]
[334293148,1722914956372,-174.457016,0.00023465,2]
[334293149,1722914956394,-125.60639248,0.00023608,2]
[334293150,1722914957097,-245.0,0.00023608,2]
[334293151,1722914962089,-810.1149959,0.00018945,2]
[334293195,1722915032538,-657.3437209,0.0002282,2]
[334293197,1722915032548,-810.1149959,0.00022963,2]
[334293199,1722915032558,-1471.73114026,0.00022963,2]
[334293201,1722915032568,-621.86718604,0.00023961,2]
[334293203,1722915032578,-170.931454,0.00024,2]
[334293205,1722915032590,-174.457016,0.00024061,2]
[334293207,1722915032600,-621.85834444,0.00024344,2]
[334293209,1722915032610,-300.0,0.00024999,2]
[334293211,1722915032620,-665.85175117,0.00025,2]
[334293213,1722915032629,-9588.92139159,0.00025,30]
[334293215,1722915032639,-620.0933593,0.00025159,2]
[334293217,1722915032649,-620.09291722,0.00025561,2]
[334293219,1722915032659,-19411.23976981,0.0002594,2]
[334293279,1722915038738,-25.69254884,0.00025938,2]
[334293281,1722915038751,-474.30745116,0.00025938,2]
[334293282,1722915038760,-228.32630975,0.00025938,2]
[334293283,1722915038771,-500.91465747,0.00025938,2]
[334293284,1722915038780,-500.0,0.00025938,2]
[334293285,1722915038790,-161.23372198,0.00025938,2]
[334293286,1722915038799,-500.0,0.00025938,2]
[334293287,1722915038811,-500.0,0.00025938,2]
[334293288,1722915038821,-500.0,0.00025938,2]
[334293289,1722915038830,-500.0,0.00025938,2]
[334293290,1722915038841,-500.0,0.00025938,2]
[334293291,1722915038850,-500.0,0.00025938,2]
[334293292,1722915038859,-500.0,0.00025938,2]
[334293293,1722915038869,-500.0,0.00025938,2]
[334293294,1722915038878,-500.0,0.00025938,2]
[334293295,1722915038888,-500.0,0.00025938,2]
[334293296,1722915038897,-299.37615556,0.00025938,2]
[334293297,1722915038907,-500.0,0.00025938,2]
[334293298,1722915038916,-500.0,0.00025938,2]
[334293299,1722915038926,-500.0,0.00025938,2]
[334293300,1722915038935,-500.0,0.00025938,2]
[334293301,1722915038944,-500.0,0.00025938,2]
[334293302,1722915038953,-1477.43653569,0.0002594,2]
[334293303,1722915038962,-155.96,0.000266,31]
[334293304,1722915038972,-155.96,0.000266,31]
[334293305,1722915038981,-402.3465429,0.00026679,2]
[334293306,1722915038991,-160.54991199,0.00026709,2]
[334293307,1722915039000,-620.00464586,0.00026839,2]
[334293308,1722915039010,-611.6185,0.00028009,30]
[334293309,1722915039019,-162.871008,0.00029589,2]
[334293310,1722915039029,-244.9227869,0.0003,3]
[334293311,1722915039038,-155.96,0.000305,31]
[334293312,1722915039047,-155.96,0.000305,31]
[334293313,1722915039057,-209.024523,0.00031507,120]
[334293314,1722915039066,-1414.93878804,0.00031649,120]
[334293315,1722915039075,-29783.76230035,0.00031649,7]
[334293316,1722915039085,-194.86872756,0.00031681,2]
[334293317,1722915039095,-166.549443,0.00031781,2]
[334293318,1722915039104,-171.392776,0.00032893,2]
[334293319,1722915039114,-154.54409492,0.00033462,7]
[334293320,1722915039124,-155.96,0.000344,31]
[334293321,1722915039134,-155.96,0.000344,31]
[334293322,1722915039143,-194.86872755,0.00035106,2]
[334293323,1722915039152,-256.4400484,0.0003789,2]
[334293324,1722915039292,-178.00633592,0.00037989,15]
[334293325,1722915039302,-500.0,0.00037989,15]
[334293326,1722915039311,-500.0,0.00037989,15]
[334293327,1722915039321,-500.0,0.00037989,15]
[334293328,1722915039331,-500.0,0.00037989,15]
[334293329,1722915039343,-500.0,0.00037989,15]
[334293330,1722915039352,-500.0,0.00037989,15]
[334293331,1722915039362,-500.0,0.00037989,15]
[334293332,1722915039371,-397.44236844,0.00037989,15]
[334293333,1722915039381,-6320.97,0.0003799,3]
[334293334,1722915039390,-999.13744623,0.00037999,2]
[334293335,1722915039400,-3000.0,0.00038,42]
[334293336,1722915039409,-22485.98405419,0.00038,2]
[334293337,1722915039418,-153.0,0.00038055,2]
[334293338,1722915039428,-3000.0,0.00038103,42]
[334293339,1722915039438,-240.9462531,0.00038164,2]
[334293340,1722915039447,-288.0742506,0.00038164,2]
[334293341,1722915039457,-153.0,0.00038164,2]
[334293342,1722915039466,-153.0,0.00038164,2]
[334293343,1722915039476,-153.0,0.00038164,2]
[334293344,1722915039486,-153.0,0.00038164,2]
[334293345,1722915039495,-294.3442761,0.00038164,2]
[334293346,1722915039504,-3000.0,0.00038206,42]
[334293347,1722915039514,-155.96,0.000383,31]
[334293348,1722915039524,-155.96,0.000383,31]
[334293349,1722915039533,-3000.0,0.00038309,42]
[334293350,1722915039543,-500.0,0.00038356,20]
[334293351,1722915039552,-3000.0,0.00038412,42]
[334293352,1722915039562,-500.0,0.00038493,22]
[334293353,1722915039572,-3000.0,0.00038515,42]
[334293354,1722915039581,-1302.94499871,0.0003853,2]
[334293355,1722915039596,-194.86872755,0.0003853,2]
[334293356,1722915039605,-11683.07777772,0.000386,48]
[334293357,1722915039614,-3000.0,0.00038618,42]
[334293358,1722915039623,-26207.524783,0.0003862,4]
[334293359,1722915039632,-1302.94499869,0.00038623,2]
[334293360,1722915039642,-8868.0,0.0003863,120]
[334293361,1722915039651,-8868.0,0.0003863,120]
[334293362,1722915039661,-8868.0,0.0003863,120]
[334293363,1722915039671,-8868.0,0.0003863,120]
[334293364,1722915039680,-8868.0,0.0003863,120]
[334293365,1722915039690,-500.0,0.0003863,24]
[334293366,1722915039702,-414.1094494,0.0003863,2]
[334293367,1722915039711,-271.3686162,0.00038658,2]
[334293368,1722915039722,-271.3686162,0.00038658,2]
[334293369,1722915039735,-271.3686162,0.00038658,2]
[334293370,1722915039745,-271.3686162,0.00038658,2]
[334293371,1722915039754,-271.3686162,0.00038658,2]
[334293372,1722915039766,-271.3686162,0.00038658,2]
[334293373,1722915039775,-271.3686162,0.00038658,2]
[334293374,1722915039785,-271.3686162,0.00038658,2]
[334293375,1722915039795,-271.3686162,0.00038658,2]
[334293376,1722915039806,-271.3686162,0.00038658,2]
[334293377,1722915039815,-271.3686162,0.00038658,2]
[334293378,1722915039825,-150.112233,0.000387,10]
[334293379,1722915039835,-26207.524783,0.00038705,4]
[334293380,1722915039850,-1302.94499869,0.00038715,2]
[334293381,1722915039859,-3000.0,0.00038721,42]
[334293382,1722915039870,-500.0,0.00038767,26]
[334293383,1722915039879,-2000.0,0.000388,2]
[334293384,1722915039889,-1302.94499869,0.00038808,2]
[334293385,1722915039898,-153.0,0.00038822,2]
[334293386,1722915039907,-3000.0,0.00038824,42]
[334293387,1722915039917,-153.0,0.00038849,2]
[334293388,1722915039926,-153.0,0.00038849,2]
[334293389,1722915039936,-153.0,0.00038849,2]
[334293390,1722915039945,-153.0,0.00038849,2]
[334293391,1722915039955,-153.0,0.00038849,2]
[334293392,1722915039964,-200.0,0.00038873,2]
[334293393,1722915039975,-52415.049566,0.0003888,4]
[334293394,1722915039984,-26207.524783,0.0003889,4]
[334293395,1722915039994,-151.0,0.0003889,14]
[334293396,1722915040004,-23208.59789232,0.0003889,5]
[334293397,1722915040019,-18195.29388008,0.0003889,5]
[334293398,1722915040033,-42946.93480845,0.0003889,5]
[334293414,1722915043482,-3934.28946354,0.0003889,5]
[334293415,1722915043692,-602.88395561,0.0003889,5]
[334293416,1722915043703,-5527.53339301,0.000389,21]
[334293417,1722915043712,-13812.1506964,0.000389,21]
[334293419,1722915043728,-3428.23902882,0.000389,21]
[334293421,1722915043739,-250.000025,0.000389,21]
[334293515,1722915941104,-162.76266,0.00014247,2]
[334293516,1722915941126,-164.636515,0.00014247,2]
[334293517,1722915941147,-13.70828136,0.00021011,2]
[334293518,1722915942104,-161.43991706,0.00021011,2]
[334293519,1722915942125,-72.64610903,0.00021011,2]
[334293520,1722916025106,-194.58009581,0.00020999,2]
[334293521,1722916025129,-44.83420747,0.00022,2]
[334293522,1722916032113,-370.19417483,0.00021599,2]
[334293523,1722916032158,-36.38975667,0.00021599,2]
[334293524,1722916032180,-142.75964041,0.00022,2]
[334293525,1722916039115,-114.56020839,0.00022,2]
[334293526,1722916039141,-159.03831072,0.0002222,2]
[334293527,1722916041094,-143.11574555,0.0002222,2]
[334293528,1722916041116,-302.15405627,0.0002244,2]
[334293529,1722916041140,-386.64008173,0.0002266,2]
[334293530,1722916041161,-500.0,0.00025,30]
[334293531,1722916041182,-195.0,0.00025,30]
[334293532,1722916041203,-548.17978988,0.00026666,2]
[334293533,1722916041224,-656.15676651,0.00026679,2]
[334293534,1722916047127,-357.60042248,0.00022,2]
[334293535,1722916052114,-766.23319551,0.00022,2]
[334293538,1722916158115,-194.5599409,0.00021916,2]
[334293539,1722916158139,-55.62448843,0.00021916,2]
[334293540,1722916171125,-230.5961019,0.00021916,2]
[334293541,1722916171152,-734.48339013,0.00021916,2]
[334293542,1722916172800,-164.57136864,0.00021916,2]
[334293599,1722916238510,-421.25784502,0.00021906,2]
[334293600,1722916238521,-4181.6719909,0.00021916,2]
[334293601,1722916238530,-1625.81763535,0.00021916,2]
[334293602,1722916238540,-300.0,0.00021999,2]
[334293603,1722916238550,-300.0,0.00021999,2]
[334293604,1722916238559,-154.0,0.00023906,2]
[334293605,1722916238569,-266.0,0.00024199,2]
[334293606,1722916238579,-2205.28774848,0.00025,30]
[334293607,1722916238588,-906.64297306,0.00026546,10]
[334293608,1722916238597,-906.64297306,0.00026811,10]
[334293609,1722916238607,-906.64297306,0.00027077,10]
[334293610,1722916238616,-1056.99678415,0.00027342,10]
[334293611,1722916238625,-162.76266,0.00031781,2]
[334293612,1722916238635,-164.636515,0.00031781,2]
[334293613,1722916238644,-173.920198,0.00031979,2]
[334293614,1722916238653,-173.920198,0.00032188,2]
[334293615,1722916238663,-173.920198,0.00032396,2]
[334293616,1722916238673,-250.0,0.00032578,2]
[334293617,1722916238683,-200.0,0.00032598,15]
[334293618,1722916238692,-173.920198,0.00032604,2]
[334293619,1722916238709,-380.0,0.00032688,2]
[334293620,1722916238718,-173.920198,0.00032813,2]
[334293621,1722916238728,-173.920198,0.00033021,2]
[334293622,1722916238737,-173.920198,0.00033229,2]
[334293623,1722916238747,-173.920198,0.00033437,2]
[334293624,1722916238757,-173.920198,0.00033646,2]
[334293625,1722916238766,-171.392776,0.00033718,2]
[334293626,1722916238957,-207.0547247,0.00037342,2]
[334293627,1722916238967,-294.2886399,0.00037342,2]
[334293628,1722916238977,-297.0,0.0003777,120]
[334293629,1722916238987,-366.76318307,0.00038,6]
[334293630,1722916238996,-154.5150384,0.00038,2]
[334293631,1722916239006,-153.0,0.00038,2]
[334293632,1722916239016,-500.0,0.00038299,15]
[334293633,1722916239025,-500.0,0.00038299,7]
[334293634,1722916239035,-500.0,0.00038299,15]
[334293635,1722916239045,-500.0,0.00038299,7]
[334293636,1722916239055,-444.1032317,0.00038299,7]
[334293637,1722916239065,-500.0,0.00038299,15]
[334293638,1722916239075,-333.19539664,0.00038299,15]
[334293639,1722916239084,-500.0,0.00038299,15]
[334293640,1722916239094,-40000.0,0.000383,18]
[334293641,1722916239104,-20695.3082097,0.000383,21]
[334293642,1722916239115,-6320.97,0.00038336,3]
[334293643,1722916239125,-500.0,0.00038345,15]
[334293644,1722916239135,-178.00633592,0.00038345,15]
[334293645,1722916239145,-500.0,0.00038345,15]
[334293646,1722916239155,-500.0,0.00038345,15]
[334293647,1722916239164,-500.0,0.00038345,15]
[334293648,1722916239174,-500.0,0.00038345,15]
[334293649,1722916239183,-500.0,0.00038345,15]
[334293650,1722916239194,-397.44236844,0.00038345,15]
[334293651,1722916239205,-500.0,0.00038345,15]
[334293652,1722916239215,-999.13744623,0.00038345,2]
[334293653,1722916239224,-222.69,0.00038346,3]
[334293654,1722916239234,-668.12,0.00038346,3]
[334293655,1722916239244,-30774.6423222,0.00038346,4]
[334293656,1722916239254,-500.0,0.00038356,20]
[334293657,1722916239264,-354.0,0.00038356,14]
[334293658,1722916239273,-354.0,0.00038356,14]
[334293659,1722916239283,-354.0,0.00038356,14]
[334293660,1722916239294,-354.0,0.00038356,14]
[334293661,1722916239303,-354.0,0.00038356,14]
[334293662,1722916239313,-354.0,0.00038356,14]
[334293663,1722916239323,-354.0,0.00038356,14]
[334293664,1722916239333,-354.0,0.00038356,14]
[334293665,1722916239343,-354.0,0.00038356,14]
[334293666,1722916239353,-354.0,0.00038356,14]
[334293667,1722916239363,-354.0,0.00038356,14]
[334293668,1722916239372,-354.0,0.00038356,14]
[334293669,1722916239381,-354.0,0.00038356,14]
[334293670,1722916239391,-354.0,0.00038356,14]
[334293671,1722916239400,-354.0,0.00038356,14]
[334293672,1722916239409,-354.0,0.00038356,14]
[334293673,1722916239418,-354.0,0.00038356,14]
[334293674,1722916239428,-650.0,0.00038356,14]
[334293675,1722916239437,-650.0,0.00038356,14]
[334293676,1722916239448,-650.0,0.00038356,14]
[334293677,1722916239457,-650.0,0.00038356,14]
[334293678,1722916239467,-650.0,0.00038356,14]
[334293679,1722916239477,-650.0,0.00038356,14]
[334293680,1722916239486,-650.0,0.00038356,14]
[334293681,1722916239495,-650.0,0.00038356,14]
[334293682,1722916239504,-650.0,0.00038356,14]
[334293683,1722916239513,-650.0,0.00038356,14]
[334293684,1722916239522,-650.0,0.00038356,14]
[334293685,1722916239532,-650.0,0.00038356,14]
[334293686,1722916239541,-650.0,0.00038356,14]
[334293687,1722916239552,-650.0,0.00038356,14]
[334293688,1722916239562,-650.0,0.00038356,14]
[334293689,1722916239571,-650.0,0.00038356,14]
[334293690,1722916239580,-650.0,0.00038356,14]
[334293691,1722916239590,-354.0,0.00038356,14]
[334293692,1722916239599,-354.0,0.00038356,14]
[334293693,1722916239609,-354.0,0.00038356,14]
[334293694,1722916239618,-354.0,0.00038356,14]
[334293695,1722916239628,-354.0,0.00038356,14]
[334293696,1722916239637,-354.0,0.00038356,14]
[334293697,1722916239647,-354.0,0.00038356,14]
[334293698,1722916239656,-354.0,0.00038356,14]
[334293699,1722916239665,-354.0,0.00038356,14]